[Event "Titled Tuesday Blitz April 25 Late 2023"]
[White "Womacka, Mathias"]
[Black "Ankerst, Mihael"]
[WhiteFideId "4611390"]
[BlackFideId "14602369"]
[WhiteElo "2377"]
[BlackElo "2370"]
[Result "1-0"]
[Round "02"]
[TimeControl "180+2"]
[Date "2023.04.25"]
[WhiteClock "0:00:18"]
[BlackClock "0:00:13"]

1. e4 {[%clk 0:03:00]}  c5 {[%clk 0:02:59]} 2. Nf3 {[%clk 0:03:00]}  Qb6 {[%clk 0:02:59]} 3. Nc3 {[%clk 0:02:56]}  Nc6 {[%clk 0:02:58]} 4. Nd5 {[%clk 0:02:52]}  Qa5 {[%clk 0:02:57]} 5. c3 {[%clk 0:02:52]}  e6 {[%clk 0:02:58]} 6. Ne3 {[%clk 0:02:51]}  Be7 {[%clk 0:02:58]} 7. Nc4 {[%clk 0:02:50]}  Qc7 {[%clk 0:02:59]} 8. d4 {[%clk 0:02:44]}  d5 {[%clk 0:02:58]} 9. exd5 {[%clk 0:02:43]}  exd5 {[%clk 0:02:59]} 10. Ne3 {[%clk 0:02:41]}  Nf6 {[%clk 0:02:58]} 11. dxc5 {[%clk 0:02:38]}  Be6 {[%clk 0:02:59]} 12. b4 {[%clk 0:02:37]}  O-O {[%clk 0:02:59]} 13. Bd3 {[%clk 0:02:36]}  Rad8 {[%clk 0:02:58]} 14. O-O {[%clk 0:02:34]}  Rfe8 {[%clk 0:02:53]} 15. a3 {[%clk 0:02:30]}  b6 {[%clk 0:02:53]} 16. cxb6 {[%clk 0:02:27]}  Qxb6 {[%clk 0:02:52]} 17. Bb2 {[%clk 0:02:20]}  h6 {[%clk 0:02:52]} 18. Re1 {[%clk 0:02:13]}  Bd6 {[%clk 0:02:48]} 19. Nf5 {[%clk 0:02:12]}  Bf4 {[%clk 0:02:47]} 20. N3d4 {[%clk 0:02:08]}  Ne5 {[%clk 0:02:45]} 21. Bb5 {[%clk 0:01:52]}  Nc4 {[%clk 0:02:33]} 22. Bxe8 {[%clk 0:01:43]}  Nxb2 {[%clk 0:02:33]} 23. Qc2 {[%clk 0:01:42]}  Nc4 {[%clk 0:01:46]} 24. Ba4 {[%clk 0:01:41]}  Qc7 {[%clk 0:01:46]} 25. g3 {[%clk 0:01:39]}  Be5 {[%clk 0:01:44]} 26. Bb3 {[%clk 0:01:33]}  Ne4 {[%clk 0:01:43]} 27. Nxe6 {[%clk 0:01:25]}  fxe6 {[%clk 0:01:42]} 28. Nd4 {[%clk 0:01:23]}  Qb6 {[%clk 0:01:12]} 29. Bxc4 {[%clk 0:01:21]}  Bxd4 {[%clk 0:01:12]} 30. cxd4 {[%clk 0:01:18]}  Qxd4 {[%clk 0:01:13]} 31. Bb3 {[%clk 0:01:14]}  Rf8 {[%clk 0:01:13]} 32. Re2 {[%clk 0:01:10]}  Ng5 {[%clk 0:01:13]} 33. Rd1 {[%clk 0:01:08]}  Qg4 {[%clk 0:01:10]} 34. Re3 {[%clk 0:01:00]}  Nf3+ {[%clk 0:01:07]} 35. Kg2 {[%clk 0:00:57]}  Nh4+ {[%clk 0:01:07]} 36. Kh1 {[%clk 0:00:55]}  Nf3 {[%clk 0:01:03]} 37. Qe2 {[%clk 0:00:50]}  Qh5 {[%clk 0:01:02]} 38. h4 {[%clk 0:00:47]}  Qg4 {[%clk 0:00:59]} 39. Rxf3 {[%clk 0:00:44]}  Rxf3 {[%clk 0:00:54]} 40. Re1 {[%clk 0:00:44]}  Kh8 {[%clk 0:00:43]} 41. Bd1 {[%clk 0:00:41]}  Qh3+ {[%clk 0:00:43]} 42. Kg1 {[%clk 0:00:41]}  Rf6 {[%clk 0:00:44]} 43. Qe5 {[%clk 0:00:35]}  Kg8 {[%clk 0:00:26]} 44. Qb8+ {[%clk 0:00:31]}  Rf8 {[%clk 0:00:18]} 45. Qxa7 {[%clk 0:00:31]}  Qf5 {[%clk 0:00:19]} 46. Qe3 {[%clk 0:00:30]}  Rf6 {[%clk 0:00:18]} 47. Be2 {[%clk 0:00:28]}  Qc2 {[%clk 0:00:18]} 48. Rc1 {[%clk 0:00:23]}  Qb2 {[%clk 0:00:18]} 49. Rc8+ {[%clk 0:00:21]}  Kf7 {[%clk 0:00:18]} 50. Bh5+ {[%clk 0:00:20]}  Ke7 {[%clk 0:00:18]} 51. Qc5+ {[%clk 0:00:19]}  Kd7 {[%clk 0:00:15]} 52. Rc7+ {[%clk 0:00:18]}  Kd8 {[%clk 0:00:13]} 53. Qe7# {[%clk 0:00:18]} 1-0


[Site "https://www.chess.com"]

[Event "Titled Tuesday Blitz April 25 Late 2023"]
[White "Osmonbekov, Talaibek"]
[Black "Le Goff, Ronan"]
[WhiteFideId "2017253"]
[BlackFideId "612073"]
[WhiteElo "2135"]
[BlackElo "2275"]
[Result "0-1"]
[Round "02"]
[TimeControl "180+2"]
[Date "2023.04.25"]
[WhiteClock "0:00:50"]
[BlackClock "0:02:07"]

1. d4 {[%clk 0:03:00]}  Nf6 {[%clk 0:02:57]} 2. Bf4 {[%clk 0:02:59]}  g6 {[%clk 0:02:56]} 3. Nc3 {[%clk 0:02:59]}  Bg7 {[%clk 0:02:55]} 4. e4 {[%clk 0:02:59]}  d6 {[%clk 0:02:55]} 5. Qd2 {[%clk 0:03:00]}  c6 {[%clk 0:02:54]} 6. O-O-O {[%clk 0:02:59]}  b5 {[%clk 0:02:54]} 7. f3 {[%clk 0:03:00]}  Qa5 {[%clk 0:02:52]} 8. Kb1 {[%clk 0:02:59]}  Be6 {[%clk 0:02:52]} 9. d5 {[%clk 0:02:59]}  cxd5 {[%clk 0:02:48]} 10. exd5 {[%clk 0:03:00]}  Bd7 {[%clk 0:02:46]} 11. Nxb5 {[%clk 0:02:45]}  Qb6 {[%clk 0:02:45]} 12. Qd4 {[%clk 0:02:12]}  Qb7 {[%clk 0:02:36]} 13. Nxd6+ {[%clk 0:02:04]}  exd6 {[%clk 0:02:35]} 14. Re1+ {[%clk 0:01:58]}  Kd8 {[%clk 0:02:34]} 15. Bxd6 {[%clk 0:01:58]}  Ne8 {[%clk 0:02:33]} 16. Be7+ {[%clk 0:01:56]}  Kc8 {[%clk 0:02:32]} 17. Qc4+ {[%clk 0:01:39]}  Nc7 {[%clk 0:02:31]} 18. c3 {[%clk 0:01:30]}  Bb5 {[%clk 0:02:26]} 19. Qg4+ {[%clk 0:01:22]}  f5 {[%clk 0:02:26]} 20. Qb4 {[%clk 0:01:05]}  Bxf1 {[%clk 0:02:23]} 21. Qxb7+ {[%clk 0:00:57]}  Kxb7 {[%clk 0:02:24]} 22. d6 {[%clk 0:00:58]}  Bxg2 {[%clk 0:02:22]} 23. dxc7 {[%clk 0:00:57]}  Nc6 {[%clk 0:02:21]} 24. Bd6 {[%clk 0:00:51]}  Bxh1 {[%clk 0:02:20]} 25. Nh3 {[%clk 0:00:51]}  Bxf3 {[%clk 0:02:18]} 26. Ng5 {[%clk 0:00:52]}  Be4+ {[%clk 0:02:18]} 27. Ka1 {[%clk 0:00:51]}  Rac8 {[%clk 0:02:15]} 28. Ne6 {[%clk 0:00:51]}  Be5 {[%clk 0:02:12]} 29. Nc5+ {[%clk 0:00:49]}  Kb6 {[%clk 0:02:11]} 30. Nxe4 {[%clk 0:00:50]}  fxe4 {[%clk 0:02:10]} 31. Bxe5 {[%clk 0:00:50]}  Nxe5 {[%clk 0:02:11]} 32. Rxe4 {[%clk 0:00:50]}  Rhe8 {[%clk 0:02:07]} 0-1


[Site "https://www.chess.com"]

[Event "Titled Tuesday Blitz April 25 Late 2023"]
[White "Narva, Triin"]
[Black "Fernandez Siles, Luis"]
[WhiteFideId "4502680"]
[BlackFideId "2209420"]
[WhiteElo "1944"]
[BlackElo "2195"]
[Result "0-1"]
[Round "02"]
[TimeControl "180+2"]
[Date "2023.04.25"]
[WhiteClock "0:00:07"]
[BlackClock "0:00:16"]

1. e4 {[%clk 0:03:00]}  c5 {[%clk 0:02:59]} 2. Nf3 {[%clk 0:03:00]}  Nc6 {[%clk 0:02:59]} 3. Bb5 {[%clk 0:03:00]}  g6 {[%clk 0:02:59]} 4. O-O {[%clk 0:03:01]}  Bg7 {[%clk 0:02:59]} 5. c3 {[%clk 0:03:01]}  Nf6 {[%clk 0:02:57]} 6. Re1 {[%clk 0:02:59]}  O-O {[%clk 0:02:56]} 7. d4 {[%clk 0:03:00]}  d5 {[%clk 0:02:56]} 8. exd5 {[%clk 0:02:55]}  Qxd5 {[%clk 0:02:54]} 9. c4 {[%clk 0:02:55]}  Qd6 {[%clk 0:02:54]} 10. d5 {[%clk 0:02:51]}  Nd4 {[%clk 0:02:34]} 11. Nxd4 {[%clk 0:02:09]}  cxd4 {[%clk 0:02:33]} 12. Nd2 {[%clk 0:02:04]}  e5 {[%clk 0:02:26]} 13. dxe6 {[%clk 0:01:55]}  Bxe6 {[%clk 0:02:06]} 14. Nf3 {[%clk 0:01:43]}  Rfd8 {[%clk 0:01:57]} 15. Bg5 {[%clk 0:01:29]}  a6 {[%clk 0:01:53]} 16. Ba4 {[%clk 0:01:27]}  Bxc4 {[%clk 0:01:53]} 17. Ne5 {[%clk 0:01:09]}  b5 {[%clk 0:01:35]} 18. Bc2 {[%clk 0:00:57]}  h6 {[%clk 0:01:13]} 19. Bf4 {[%clk 0:00:40]}  Qb6 {[%clk 0:01:00]} 20. Bd3 {[%clk 0:00:33]}  Rac8 {[%clk 0:00:59]} 21. b3 {[%clk 0:00:33]}  Bxd3 {[%clk 0:00:59]} 22. Nxd3 {[%clk 0:00:30]}  Nd5 {[%clk 0:00:56]} 23. Bg3 {[%clk 0:00:26]}  Rc3 {[%clk 0:00:49]} 24. Rc1 {[%clk 0:00:23]}  a5 {[%clk 0:00:48]} 25. Qf3 {[%clk 0:00:20]}  Nb4 {[%clk 0:00:42]} 26. Re7 {[%clk 0:00:18]}  Bf6 {[%clk 0:00:41]} 27. Rb7 {[%clk 0:00:10]}  Qe6 {[%clk 0:00:32]} 28. Re1 {[%clk 0:00:09]}  Rxd3 {[%clk 0:00:26]} 29. Rxe6 {[%clk 0:00:10]}  Rxf3 {[%clk 0:00:26]} 30. gxf3 {[%clk 0:00:09]}  fxe6 {[%clk 0:00:25]} 31. Rxb5 {[%clk 0:00:10]}  d3 {[%clk 0:00:23]} 32. Rb6 {[%clk 0:00:09]}  d2 {[%clk 0:00:23]} 33. Rxe6 {[%clk 0:00:10]}  d1=Q+ {[%clk 0:00:22]} 34. Kg2 {[%clk 0:00:10]}  Bg7 {[%clk 0:00:20]} 35. Rxg6 {[%clk 0:00:10]}  Kh7 {[%clk 0:00:20]} 36. Rg4 {[%clk 0:00:10]}  Rg8 {[%clk 0:00:18]} 37. f4 {[%clk 0:00:08]}  Nd3 {[%clk 0:00:18]} 38. f5 {[%clk 0:00:08]}  Qxg4 {[%clk 0:00:18]} 39. h3 {[%clk 0:00:08]}  Ne1+ {[%clk 0:00:17]} 40. Kf1 {[%clk 0:00:08]}  Qd1 {[%clk 0:00:17]} 41. a4 {[%clk 0:00:07]}  Nd3+ {[%clk 0:00:16]} 42. Kg2 {[%clk 0:00:07]}  Be5 {[%clk 0:00:16]} 43. h4 {[%clk 0:00:07]}  Bxg3 {[%clk 0:00:16]} 44. fxg3 {[%clk 0:00:07]}  Qe2+ {[%clk 0:00:16]} 0-1


[Site "https://www.chess.com"]

[Event "Titled Tuesday Blitz April 25 Late 2023"]
[White "Gonzalez Zamora, Juan Carlos"]
[Black "Aqib Javaid Butt"]
[WhiteFideId "3507548"]
[BlackFideId "7801262"]
[WhiteElo "2535"]
[BlackElo "1659"]
[Result "1-0"]
[Round "02"]
[TimeControl "180+2"]
[Date "2023.04.25"]
[WhiteClock "0:00:08"]
[BlackClock "0:00:04"]

1. e4 {[%clk 0:03:00]}  c6 {[%clk 0:02:59]} 2. d4 {[%clk 0:03:00]}  d5 {[%clk 0:03:00]} 3. exd5 {[%clk 0:03:01]}  cxd5 {[%clk 0:03:01]} 4. c4 {[%clk 0:03:02]}  Nc6 {[%clk 0:03:02]} 5. Nc3 {[%clk 0:03:00]}  Nf6 {[%clk 0:03:01]} 6. Nf3 {[%clk 0:03:00]}  Bg4 {[%clk 0:03:01]} 7. cxd5 {[%clk 0:03:00]}  Nxd5 {[%clk 0:03:01]} 8. Qb3 {[%clk 0:03:00]}  Bxf3 {[%clk 0:03:01]} 9. gxf3 {[%clk 0:03:01]}  e6 {[%clk 0:03:00]} 10. Qxb7 {[%clk 0:03:00]}  Nxd4 {[%clk 0:03:01]} 11. Bb5+ {[%clk 0:03:01]}  Nxb5 {[%clk 0:03:01]} 12. Qc6+ {[%clk 0:03:02]}  Ke7 {[%clk 0:02:59]} 13. Qxb5 {[%clk 0:03:01]}  Qd7 {[%clk 0:02:58]} 14. Nxd5+ {[%clk 0:03:01]}  Qxd5 {[%clk 0:02:59]} 15. Qxd5 {[%clk 0:03:01]}  exd5 {[%clk 0:03:00]} 16. Be3 {[%clk 0:03:01]}  Ke6 {[%clk 0:02:45]} 17. Ke2 {[%clk 0:03:00]}  Bd6 {[%clk 0:02:39]} 18. h3 {[%clk 0:03:01]}  Rhb8 {[%clk 0:02:35]} 19. Rab1 {[%clk 0:02:52]}  a5 {[%clk 0:02:34]} 20. Rhc1 {[%clk 0:02:50]}  Rc8 {[%clk 0:02:32]} 21. Kd3 {[%clk 0:02:47]}  Be5 {[%clk 0:02:28]} 22. b3 {[%clk 0:02:46]}  d4 {[%clk 0:01:41]} 23. Bxd4 {[%clk 0:02:08]}  Bxd4 {[%clk 0:01:36]} 24. Kxd4 {[%clk 0:02:07]}  Rd8+ {[%clk 0:01:37]} 25. Ke3 {[%clk 0:02:06]}  Rd5 {[%clk 0:01:29]} 26. Rc6+ {[%clk 0:01:53]}  Kd7 {[%clk 0:01:28]} 27. Rc4 {[%clk 0:01:51]}  f5 {[%clk 0:01:26]} 28. Rb2 {[%clk 0:01:30]}  g5 {[%clk 0:01:22]} 29. Rd4 {[%clk 0:01:24]}  Re8+ {[%clk 0:01:15]} 30. Kd3 {[%clk 0:01:24]}  Kd6 {[%clk 0:01:10]} 31. Rc2 {[%clk 0:01:15]}  Re1 {[%clk 0:01:06]} 32. Rxd5+ {[%clk 0:01:12]}  Kxd5 {[%clk 0:01:07]} 33. Rc7 {[%clk 0:01:01]}  Rd1+ {[%clk 0:00:51]} 34. Ke2 {[%clk 0:01:00]}  Ra1 {[%clk 0:00:50]} 35. a4 {[%clk 0:00:54]}  Ra3 {[%clk 0:00:42]} 36. Rb7 {[%clk 0:00:54]}  h5 {[%clk 0:00:40]} 37. Rb5+ {[%clk 0:00:54]}  Ke6 {[%clk 0:00:39]} 38. Kf1 {[%clk 0:00:52]}  h4 {[%clk 0:00:38]} 39. Kg2 {[%clk 0:00:51]}  Kf6 {[%clk 0:00:36]} 40. f4 {[%clk 0:00:35]}  g4 {[%clk 0:00:36]} 41. Rb6+ {[%clk 0:00:35]}  Kg7 {[%clk 0:00:34]} 42. Rb5 {[%clk 0:00:33]}  Kf6 {[%clk 0:00:32]} 43. Rxa5 {[%clk 0:00:28]}  Rxb3 {[%clk 0:00:31]} 44. hxg4 {[%clk 0:00:29]}  fxg4 {[%clk 0:00:31]} 45. Rg5 {[%clk 0:00:29]}  g3 {[%clk 0:00:22]} 46. fxg3 {[%clk 0:00:28]}  hxg3 {[%clk 0:00:22]} 47. a5 {[%clk 0:00:27]}  Ra3 {[%clk 0:00:20]} 48. Kh3 {[%clk 0:00:24]}  Kf7 {[%clk 0:00:16]} 49. Kg2 {[%clk 0:00:18]}  Kf6 {[%clk 0:00:17]} 50. Rb5 {[%clk 0:00:18]}  Ke6 {[%clk 0:00:12]} 51. Kh3 {[%clk 0:00:15]}  Kf6 {[%clk 0:00:11]} 52. Rg5 {[%clk 0:00:14]}  Ke6 {[%clk 0:00:11]} 53. Rxg3 {[%clk 0:00:14]}  Rxa5 {[%clk 0:00:11]} 54. Kg4 {[%clk 0:00:14]}  Kf6 {[%clk 0:00:10]} 55. Rh3 {[%clk 0:00:14]}  Ra1 {[%clk 0:00:09]} 56. Rh6+ {[%clk 0:00:14]}  Kg7 {[%clk 0:00:10]} 57. Rc6 {[%clk 0:00:13]}  Rg1+ {[%clk 0:00:10]} 58. Kf5 {[%clk 0:00:14]}  Ra1 {[%clk 0:00:10]} 59. Rc7+ {[%clk 0:00:14]}  Kf8 {[%clk 0:00:11]} 60. Kg6 {[%clk 0:00:14]}  Rg1+ {[%clk 0:00:10]} 61. Kf6 {[%clk 0:00:14]}  Ke8 {[%clk 0:00:07]} 62. f5 {[%clk 0:00:14]}  Ra1 {[%clk 0:00:04]} 63. Rc8+ {[%clk 0:00:11]}  Kd7 {[%clk 0:00:05]} 64. Rc2 {[%clk 0:00:10]}  Ra6+ {[%clk 0:00:04]} 65. Kg7 {[%clk 0:00:10]}  Ke8 {[%clk 0:00:04]} 66. Re2+ {[%clk 0:00:09]}  Kd7 {[%clk 0:00:03]} 67. f6 {[%clk 0:00:10]}  Ra1 {[%clk 0:00:04]} 68. Rg2 {[%clk 0:00:08]}  Rf1 {[%clk 0:00:04]} 69. f7 {[%clk 0:00:08]}  Ke7 {[%clk 0:00:04]} 70. Re2+ {[%clk 0:00:08]} 1-0


[Site "https://www.chess.com"]

[Event "Titled Tuesday Blitz April 25 Late 2023"]
[White "Rangel, Daniel"]
[Black "Lutz, Igor Oscar"]
[WhiteFideId "2124475"]
[BlackFideId "2110806"]
[WhiteElo "2256"]
[BlackElo "1969"]
[Result "1-0"]
[Round "02"]
[TimeControl "180+2"]
[Date "2023.04.25"]
[WhiteClock "0:00:30"]
[BlackClock "0:00:15"]

1. e4 {[%clk 0:03:00]}  c5 {[%clk 0:02:59]} 2. Nf3 {[%clk 0:03:00]}  Nc6 {[%clk 0:02:59]} 3. d3 {[%clk 0:02:58]}  d6 {[%clk 0:02:58]} 4. g3 {[%clk 0:02:56]}  e6 {[%clk 0:02:56]} 5. Bg2 {[%clk 0:02:57]}  Nge7 {[%clk 0:02:57]} 6. O-O {[%clk 0:02:57]}  g6 {[%clk 0:02:58]} 7. d4 {[%clk 0:02:56]}  cxd4 {[%clk 0:02:57]} 8. Nxd4 {[%clk 0:02:57]}  Bg7 {[%clk 0:02:58]} 9. Nb5 {[%clk 0:02:57]}  d5 {[%clk 0:02:00]} 10. exd5 {[%clk 0:02:56]}  exd5 {[%clk 0:01:59]} 11. N1c3 {[%clk 0:02:44]}  a6 {[%clk 0:01:56]} 12. Na3 {[%clk 0:02:21]}  Be6 {[%clk 0:01:55]} 13. Bg5 {[%clk 0:02:10]}  O-O {[%clk 0:01:52]} 14. Qd2 {[%clk 0:02:08]}  b5 {[%clk 0:01:50]} 15. Nd1 {[%clk 0:02:07]}  b4 {[%clk 0:01:48]} 16. Nb1 {[%clk 0:02:06]}  Rc8 {[%clk 0:01:44]} 17. a3 {[%clk 0:02:04]}  Qb6 {[%clk 0:01:28]} 18. axb4 {[%clk 0:02:02]}  Nf5 {[%clk 0:01:25]} 19. c3 {[%clk 0:01:57]}  h6 {[%clk 0:01:16]} 20. Be3 {[%clk 0:01:52]}  Nxe3 {[%clk 0:01:15]} 21. Nxe3 {[%clk 0:01:53]}  d4 {[%clk 0:01:12]} 22. Nd5 {[%clk 0:01:53]}  Qb5 {[%clk 0:01:04]} 23. Nf4 {[%clk 0:01:47]}  Bb3 {[%clk 0:01:00]} 24. Ra3 {[%clk 0:01:42]}  dxc3 {[%clk 0:00:53]} 25. bxc3 {[%clk 0:01:43]}  Bc4 {[%clk 0:00:51]} 26. Re1 {[%clk 0:01:37]}  Rcd8 {[%clk 0:00:47]} 27. Qe3 {[%clk 0:01:31]}  g5 {[%clk 0:00:44]} 28. Nh5 {[%clk 0:01:28]}  Bh8 {[%clk 0:00:41]} 29. Ra1 {[%clk 0:01:01]}  Rd3 {[%clk 0:00:38]} 30. Qc1 {[%clk 0:00:54]}  Rfd8 {[%clk 0:00:29]} 31. Na3 {[%clk 0:00:53]}  Qb8 {[%clk 0:00:25]} 32. Nxc4 {[%clk 0:00:53]}  Rxc3 {[%clk 0:00:21]} 33. Qb1 {[%clk 0:00:40]}  Rxc4 {[%clk 0:00:19]} 34. Rxa6 {[%clk 0:00:36]}  Nxb4 {[%clk 0:00:18]} 35. Rxh6 {[%clk 0:00:34]}  Rcd4 {[%clk 0:00:16]} 36. Qh7+ {[%clk 0:00:31]}  Kf8 {[%clk 0:00:15]} 37. Qxh8# {[%clk 0:00:30]} 1-0


[Site "https://www.chess.com"]

[Event "Titled Tuesday Blitz April 25 Late 2023"]
[White "Rozen, Eytan"]
[Black "Nakamura, Hikaru"]
[WhiteFideId "2816750"]
[BlackFideId "2016192"]
[WhiteElo "2451"]
[BlackElo "2885"]
[Result "0-1"]
[Round "03"]
[TimeControl "180+2"]
[Date "2023.04.25"]
[WhiteClock "0:00:31"]
[BlackClock "0:01:04"]

1. e4 {[%clk 0:03:00]}  g6 {[%clk 0:02:58]} 2. d4 {[%clk 0:03:00]}  Bg7 {[%clk 0:02:58]} 3. Nc3 {[%clk 0:03:01]}  a6 {[%clk 0:02:58]} 4. f4 {[%clk 0:02:58]}  c6 {[%clk 0:02:58]} 5. Nf3 {[%clk 0:02:56]}  d5 {[%clk 0:02:59]} 6. e5 {[%clk 0:02:52]}  Bg4 {[%clk 0:02:58]} 7. Be2 {[%clk 0:02:50]}  e6 {[%clk 0:02:58]} 8. O-O {[%clk 0:02:48]}  h5 {[%clk 0:02:58]} 9. Ng5 {[%clk 0:02:45]}  Bxe2 {[%clk 0:02:58]} 10. Nxe2 {[%clk 0:02:45]}  Ne7 {[%clk 0:02:57]} 11. b3 {[%clk 0:02:42]}  Nf5 {[%clk 0:02:57]} 12. Ba3 {[%clk 0:02:40]}  Nd7 {[%clk 0:02:47]} 13. Qd3 {[%clk 0:02:34]}  Rc8 {[%clk 0:02:39]} 14. c4 {[%clk 0:02:28]}  Bh6 {[%clk 0:02:36]} 15. cxd5 {[%clk 0:02:22]}  cxd5 {[%clk 0:02:35]} 16. Rac1 {[%clk 0:02:21]}  Bxg5 {[%clk 0:02:32]} 17. Rxc8 {[%clk 0:02:16]}  Qxc8 {[%clk 0:02:33]} 18. Rc1 {[%clk 0:02:16]}  Qd8 {[%clk 0:02:30]} 19. fxg5 {[%clk 0:02:16]}  Nb8 {[%clk 0:02:31]} 20. Nf4 {[%clk 0:02:00]}  Kd7 {[%clk 0:02:24]} 21. Rc5 {[%clk 0:01:42]}  Qxg5 {[%clk 0:01:45]} 22. g3 {[%clk 0:01:07]}  Rc8 {[%clk 0:01:34]} 23. Qc3 {[%clk 0:00:57]}  Nc6 {[%clk 0:01:23]} 24. b4 {[%clk 0:00:47]}  Nfxd4 {[%clk 0:01:15]} 25. b5 {[%clk 0:00:47]}  axb5 {[%clk 0:01:09]} 26. Kg2 {[%clk 0:00:39]}  Qxe5 {[%clk 0:01:08]} 27. Qd3 {[%clk 0:00:35]}  Qe4+ {[%clk 0:01:06]} 28. Qxe4 {[%clk 0:00:35]}  dxe4 {[%clk 0:01:06]} 29. Bb2 {[%clk 0:00:35]}  Ra8 {[%clk 0:01:06]} 30. a3 {[%clk 0:00:34]}  b4 {[%clk 0:01:06]} 31. Bxd4 {[%clk 0:00:33]}  Nxd4 {[%clk 0:01:07]} 32. axb4 {[%clk 0:00:33]}  Ra2+ {[%clk 0:01:07]} 33. Kf1 {[%clk 0:00:32]}  e3 {[%clk 0:01:07]} 34. Rc3 {[%clk 0:00:31]}  Rf2+ {[%clk 0:01:04]} 0-1


[Site "https://www.chess.com"]